bitfinex/quotes_BTCUSD_20241002
["timestamp","ask_amount","ask_price","bid_price","bid_amount"]
[1727891136788,0.79680722,61590.0,61589.0,0.000819]
[1727891137013,0.75146655,61590.0,61589.0,0.000819]
[1727891137241,0.35916097,61590.0,61589.0,0.000819]
[1727891137472,0.34431375,61590.0,61589.0,0.000819]
[1727891137707,0.15904309,61590.0,61589.0,0.000819]
[1727891137941,0.16433818,61590.0,61589.0,0.08362752]
[1727891138180,0.16433818,61590.0,61589.0,0.19489932]
[1727891138181,0.10822692,61590.0,61589.0,0.19489932]
[1727891138405,0.08405668,61590.0,61589.0,0.19489932]
[1727891138627,0.07889922,61590.0,61589.0,0.54664761]
[1727891138870,0.04858462,61590.0,61589.0,0.69914788]
[1727891139099,0.03458462,61590.0,61589.0,0.69914788]
[1727891139323,0.02054165,61590.0,61589.0,0.79914788]
[1727891139554,0.04154165,61590.0,61589.0,0.79914788]
[1727891139771,0.022638,61590.0,61589.0,0.89704788]
[1727891139997,0.001638,61590.0,61589.0,0.89704788]
[1727891140216,0.005638,61590.0,61589.0,0.89904788]
[1727891140688,0.005638,61590.0,61589.0,0.97964788]
[1727891140915,0.001638,61590.0,61589.0,0.98464788]
[1727891141364,0.001638,61590.0,61589.0,0.98264788]
[1727891141579,0.001638,61590.0,61589.0,0.98464788]
[1727891141798,0.002638,61590.0,61589.0,0.98664788]
[1727891142020,0.002638,61590.0,61589.0,0.98464788]
[1727891142236,0.001638,61590.0,61589.0,0.98264788]
[1727891142454,0.002638,61590.0,61589.0,0.98464788]
[1727891142679,0.002638,61590.0,61589.0,0.98564788]
[1727891142898,0.003638,61590.0,61589.0,0.98564788]
[1727891143116,0.002638,61590.0,61589.0,0.97964788]
[1727891143335,0.003638,61590.0,61589.0,0.98064788]
[1727891143545,0.002638,61590.0,61589.0,0.97864788]
[1727891144194,0.001638,61590.0,61589.0,0.97764788]
[1727891144426,0.001638,61590.0,61589.0,0.97864788]
[1727891144857,0.001638,61590.0,61589.0,0.88074788]
[1727891145308,0.002638,61590.0,61589.0,0.88274788]
[1727891145522,0.002638,61590.0,61589.0,0.88174788]
[1727891145778,0.001638,61590.0,61589.0,0.87974788]
[1727891145967,0.001638,61590.0,61589.0,0.88074788]
[1727891146177,0.001638,61590.0,61589.0,0.87974788]
[1727891146637,0.002638,61590.0,61589.0,0.88274788]
[1727891147062,0.001638,61590.0,61589.0,0.88074788]
[1727891147938,0.001638,61590.0,61589.0,0.6921863]
[1727891148382,0.002638,61590.0,61589.0,0.92952565]
[1727891148588,0.002638,61590.0,61589.0,0.88174788]
[1727891149055,0.002638,61590.0,61589.0,0.88374788]
[1727891149269,0.001638,61590.0,61589.0,0.88174788]
[1727891149482,0.001638,61590.0,61589.0,0.97604788]
[1727891149697,0.002638,61590.0,61589.0,0.97704788]
[1727891149908,0.003638,61590.0,61589.0,0.97804788]
[1727891151135,0.003638,61590.0,61589.0,0.97604788]
[1727891151372,0.003638,61590.0,61589.0,0.88274788]
[1727891152333,0.002638,61590.0,61589.0,0.88074788]
[1727891152585,0.003638,61590.0,61589.0,0.88274788]
[1727891153115,0.002638,61590.0,61589.0,0.88174788]
[1727891153364,0.001638,61590.0,61589.0,0.88074788]
[1727891153592,0.001638,61590.0,61589.0,0.87974788]
[1727891153878,0.001638,61590.0,61589.0,0.88274788]
[1727891154152,0.002638,61590.0,61589.0,0.88774788]
[1727891154391,0.002638,61590.0,61589.0,0.98844788]
[1727891154648,0.000819,61609.0,61602.0,0.023]
[1727891154924,0.000819,61609.0,61608.0,0.37387758]
[1727891155184,0.000819,61609.0,61608.0,0.47387758]
[1727891155700,0.000819,61609.0,61608.0,0.57667255]
[1727891155950,0.000819,61609.0,61608.0,0.73985926]
[1727891156200,0.000819,61609.0,61608.0,0.89134185]
[1727891156707,0.000819,61609.0,61608.0,0.89434185]
[1727891156935,0.000819,61609.0,61608.0,0.89850746]
[1727891157167,0.000819,61609.0,61608.0,0.89550746]
[1727891157408,0.001819,61609.0,61608.0,0.89950746]
[1727891158592,0.001819,61609.0,61608.0,0.90650746]
[1727891158818,0.001819,61609.0,61608.0,0.91050746]
[1727891159094,0.001819,61609.0,61608.0,0.90150746]
[1727891159494,0.002819,61609.0,61608.0,0.91350746]
[1727891159496,0.003819,61609.0,61608.0,0.91750746]
[1727891159712,0.001819,61609.0,61608.0,0.90250746]
[1727891159919,0.002819,61609.0,61608.0,0.90650746]
[1727891160136,0.003819,61609.0,61608.0,0.91750746]
[1727891160409,0.003819,61609.0,61608.0,0.91350746]
[1727891160410,0.001819,61609.0,61608.0,0.91350746]
[1727891160596,0.002819,61609.0,61608.0,0.60478197]
[1727891160806,0.002819,61609.0,61608.0,0.42878197]
[1727891161218,0.002819,61609.0,61608.0,0.26142965]
[1727891161454,0.002819,61609.0,61608.0,0.08811365]
[1727891161455,0.18174999,61609.0,61608.0,0.08811365]
[1727891161696,0.27789805,61609.0,61608.0,0.02363106]
[1727891161915,0.37269805,61609.0,61608.0,0.01963106]
[1727891162137,0.162329,61603.0,61602.0,0.24430962]
[1727891162348,0.01901247,61603.0,61602.0,0.24430962]
[1727891162541,0.01901247,61603.0,61602.0,0.00866387]
[1727891162974,0.01901247,61603.0,61596.0,0.324692]
[1727891162975,0.03662346,61603.0,61593.0,0.00429882]
[1727891163205,0.01901079,61602.0,61594.0,0.35957235]
[1727891163420,0.01761102,61601.0,61594.0,0.04357598]
[1727891163630,0.01901079,61600.0,61597.0,0.324688]
[1727891163866,0.001819,61609.0,61608.0,0.162316]
[1727891164094,0.01941867,61609.0,61608.0,0.162316]
[1727891164378,0.01941867,61609.0,61608.0,0.61685926]
[1727891164379,0.02078745,61609.0,61608.0,0.61685926]
[1727891164607,0.02078745,61609.0,61608.0,0.77593959]
[1727891164608,0.000819,61609.0,61608.0,0.77593959]
[1727891165039,0.000819,61609.0,61608.0,0.79893959]
[1727891165420,0.01978065,61609.0,61608.0,0.79893959]
[1727891165654,0.02278389,61609.0,61608.0,0.79893959]
[1727891166306,0.03178389,61609.0,61608.0,0.79893959]
[1727891166786,0.012819,61609.0,61608.0,0.79893959]
[1727891167005,0.003819,61609.0,61608.0,0.79893959]
[1727891167444,0.02300886,61609.0,61608.0,0.79893959]
[1727891167671,0.05811022,61609.0,61608.0,0.35302739]
[1727891167882,0.05811022,61609.0,61608.0,0.19071139]
[1727891167883,0.08683323,61609.0,61608.0,0.19071139]
[1727891168123,0.08683323,61609.0,61608.0,0.17094706]
[1727891168332,0.08683323,61609.0,61608.0,0.00863106]
[1727891168333,0.28997335,61609.0,61608.0,0.00863106]
[1727891168549,0.31630429,61609.0,61608.0,0.00863106]
[1727891168762,0.324634,61608.0,61599.0,0.324678]
[1727891168944,0.162324,61605.0,61601.0,0.162334]
[1727891169183,0.11981657,61604.0,61601.0,0.162334]
[1727891169364,0.3496942,61606.0,61602.0,0.00866387]
[1727891169365,0.11168363,61603.0,61602.0,0.00866387]
[1727891169623,0.11168363,61603.0,61602.0,0.19399487]
[1727891170449,0.11168363,61603.0,61602.0,0.19399587]
[1727891170667,0.06882437,61603.0,61602.0,0.35718258]
[1727891170896,0.06882437,61603.0,61602.0,0.51054025]
[1727891171325,0.06882437,61603.0,61602.0,0.18502154]
[1727891171836,0.2738327,61603.0,61602.0,0.01266387]
[1727891172094,0.2738327,61603.0,61602.0,0.004]
[1727891172095,0.28600056,61603.0,61602.0,0.004]
[1727891172318,0.28600056,61603.0,61592.0,0.24430962]
[1727891172319,0.16235,61595.0,61592.0,0.24430962]
[1727891172534,0.0935909,61595.0,61592.0,0.24430962]
[1727891172743,0.16235,61595.0,61594.0,0.00870763]
[1727891172957,0.162353,61594.0,61593.0,0.0087131]
[1727891173187,0.05048581,61595.0,61594.0,0.17106063]
[1727891173427,0.06846917,61595.0,61594.0,0.32553971]
[1727891173642,0.02864258,61595.0,61594.0,0.45226234]
[1727891173850,0.011,61595.0,61594.0,0.48396997]
[1727891174483,0.011,61595.0,61594.0,0.58396997]
[1727891174916,0.010819,61603.0,61602.0,0.162332]
[1727891175123,0.010819,61603.0,61602.0,0.185332]
[1727891175124,0.04145942,61603.0,61602.0,0.185332]
[1727891175333,0.05162161,61603.0,61602.0,0.19399587]
[1727891175539,0.06927461,61603.0,61602.0,0.24289975]
[1727891176416,0.07727461,61603.0,61602.0,0.24289975]
[1727891177332,0.08027461,61603.0,61602.0,0.24289975]
[1727891177770,0.10572186,61603.0,61602.0,0.40608646]
[1727891177984,0.011819,61603.0,61602.0,0.40608646]
[1727891178447,0.008819,61603.0,61602.0,0.40608646]
[1727891178694,0.000819,61603.0,61602.0,0.40608646]
[1727891178930,0.005819,61603.0,61602.0,0.50608646]
[1727891179146,0.003819,61603.0,61602.0,0.50608646]
[1727891179454,0.003819,61603.0,61602.0,0.58738646]
[1727891179592,0.004819,61603.0,61602.0,0.58738646]
[1727891179853,0.004819,61603.0,61602.0,0.59162878]
[1727891180709,0.001819,61603.0,61602.0,0.59662878]
[1727891180919,0.001819,61603.0,61602.0,0.59862878]
[1727891181142,0.001819,61603.0,61602.0,0.60262878]
[1727891181352,0.000819,61603.0,61602.0,0.60262878]
[1727891181571,0.001819,61603.0,61602.0,0.59962878]
[1727891181783,0.002819,61603.0,61602.0,0.60962878]
[1727891182023,0.001819,61603.0,61602.0,0.60862878]
[1727891182237,0.001819,61603.0,61602.0,0.59762878]
[1727891182459,0.000819,61603.0,61602.0,0.59862878]
[1727891182680,0.001819,61603.0,61602.0,0.60862878]
[1727891182888,0.002819,61603.0,61602.0,0.60962878]
[1727891183103,0.002819,61603.0,61602.0,0.60862878]
[1727891183894,0.002819,61603.0,61602.0,0.60662878]
[1727891184156,0.001819,61603.0,61602.0,0.59662878]
[1727891184416,0.000819,61610.0,61609.0,0.338413]
[1727891184658,0.000819,61610.0,61609.0,0.9065934]
[1727891184897,0.000819,61610.0,61609.0,0.91521899]
[1727891185758,0.001819,61610.0,61609.0,0.92221899]
[1727891186029,0.001819,61610.0,61609.0,1.01751899]
[1727891186244,0.001642,61618.0,61617.0,0.262292]
[1727891186462,0.001642,61618.0,61617.0,0.7332042]
[1727891186674,0.001642,61618.0,61617.0,0.7312042]
[1727891187090,0.001642,61618.0,61617.0,0.7332042]
[1727891187334,0.001642,61618.0,61617.0,0.7312042]
[1727891187552,0.001642,61618.0,61617.0,0.88281665]
[1727891188391,0.001642,61618.0,61617.0,0.89081665]
[1727891188392,0.002642,61618.0,61617.0,0.89081665]
[1727891188598,0.002642,61618.0,61617.0,0.8993985]
[1727891188981,0.002642,61618.0,61617.0,0.9023985]
[1727891189604,0.002642,61618.0,61617.0,0.9791985]
[1727891190156,0.002642,61618.0,61617.0,0.9811985]
[1727891190591,0.002642,61618.0,61617.0,0.98845338]
[1727891191004,0.001642,61618.0,61617.0,0.98245338]
[1727891191427,0.002642,61618.0,61617.0,0.98745338]
[1727891191632,0.002642,61618.0,61617.0,0.99345338]
[1727891191633,0.002,61618.0,61617.0,0.99345338]
[1727891191841,0.001,61618.0,61617.0,0.98545338]
[1727891192045,0.001,61618.0,61617.0,0.99645338]
[1727891192254,0.002,61618.0,61617.0,0.99645338]
[1727891197006,0.001638,61629.0,61624.0,0.002]
[1727891197213,0.001638,61629.0,61624.0,0.8118862]
[1727891197486,0.001638,61629.0,61624.0,0.82042979]
[1727891197699,0.001638,61629.0,61624.0,0.82242979]
[1727891197922,0.001638,61629.0,61628.0,0.002]
[1727891198144,0.001638,61629.0,61628.0,0.45044971]
[1727891198384,0.001638,61629.0,61628.0,0.46397144]
[1727891198592,0.001636,61634.0,61633.0,0.16225]
[1727891198820,0.001636,61634.0,61633.0,0.76186094]
[1727891199031,0.001636,61634.0,61633.0,0.76711104]
[1727891199247,0.001636,61634.0,61633.0,1.01142066]
[1727891199460,0.001636,61634.0,61633.0,0.76711104]
[1727891199684,0.000819,61642.0,61639.0,0.002]
[1727891199888,0.000819,61642.0,61641.0,0.8132412]
[1727891200098,0.000819,61642.0,61641.0,0.8202412]
[1727891200780,0.24450962,61659.0,61650.0,0.285206]
[1727891201042,0.24450962,61659.0,61650.0,0.44839271]
[1727891201288,0.02542406,61653.0,61651.0,0.290203]
[1727891201508,0.0002,61659.0,61658.0,0.285184]
[1727891201746,0.0002,61659.0,61658.0,0.7310962]
[1727891201960,0.0002,61659.0,61658.0,0.76909413]
[1727891202177,0.0002,61659.0,61658.0,0.86687261]
[1727891202448,0.0002,61659.0,61658.0,0.90487054]
[1727891202663,0.0002,61659.0,61658.0,0.86187261]
[1727891202890,0.0012,61659.0,61658.0,0.86887261]
[1727891204539,0.0012,61659.0,61658.0,0.89742156]
[1727891205216,0.0012,61659.0,61658.0,0.93541949]
[1727891205893,0.0012,61659.0,61658.0,1.11061949]
[1727891206112,0.0012,61659.0,61658.0,1.39534498]
[1727891206325,0.0012,61659.0,61658.0,1.11061949]
[1727891206747,0.0012,61659.0,61658.0,1.11261949]
[1727891207178,0.0012,61659.0,61658.0,0.86942156]
[1727891207395,0.0012,61659.0,61658.0,0.85842156]
[1727891207607,0.0002,61659.0,61658.0,0.86542156]
[1727891208107,0.0002,61659.0,61658.0,0.86142156]
[1727891208320,0.0002,61659.0,61658.0,0.31231828]
[1727891208784,0.01884372,61659.0,61658.0,0.32629945]
[1727891209042,0.01884372,61659.0,61658.0,0.30929945]
[1727891209251,0.01984372,61659.0,61658.0,0.32029945]
[1727891209458,0.04526794,61659.0,61658.0,0.32029945]
[1727891209673,0.04426794,61659.0,61658.0,0.32029945]
[1727891209888,0.01884372,61659.0,61658.0,0.32029945]
[1727891210126,0.01884372,61659.0,61658.0,0.34429945]
[1727891210371,0.01884372,61659.0,61658.0,0.33329945]
[1727891210594,0.01966172,61659.0,61658.0,0.33329945]
[1727891211229,0.01966172,61659.0,61658.0,0.33229945]
[1727891212100,0.01963522,61659.0,61658.0,0.33229945]
[1727891212316,0.04943179,61659.0,61658.0,0.33229945]
[1727891212523,0.01963522,61659.0,61658.0,0.33229945]
[1727891213160,0.04944078,61659.0,61658.0,0.33229945]
[1727891213796,0.04944078,61659.0,61658.0,0.33629945]
[1727891214018,0.04944078,61659.0,61658.0,0.78221165]
[1727891214019,0.01963522,61659.0,61658.0,0.78221165]
[1727891214239,0.01963522,61659.0,61658.0,0.87821165]
[1727891214240,0.019665,61659.0,61658.0,0.87821165]
[1727891214462,0.001018,61659.0,61658.0,0.87821165]
[1727891214677,0.001018,61659.0,61658.0,0.88221165]
[1727891215104,0.001018,61659.0,61658.0,0.87821165]
[1727891215316,0.001018,61659.0,61658.0,0.88221165]
[1727891216199,0.001018,61659.0,61658.0,0.88421165]
[1727891216659,0.001018,61659.0,61658.0,0.88021165]
[1727891217281,0.001018,61659.0,61658.0,0.88821165]
[1727891217957,0.001018,61659.0,61658.0,0.88021165]
[1727891218208,0.001018,61659.0,61658.0,0.88521165]
[1727891218465,0.001018,61659.0,61658.0,0.89621165]
[1727891218695,0.01964778,61659.0,61658.0,0.89621165]
[1727891219111,0.01964778,61659.0,61658.0,0.88921165]
[1727891219337,0.01964778,61659.0,61658.0,0.89321165]
[1727891219774,0.01964778,61659.0,61658.0,0.88221165]
[1727891219985,0.01964778,61659.0,61658.0,0.89221165]
[1727891220470,0.01964778,61659.0,61658.0,0.88221165]
[1727891220672,0.04947183,61659.0,61658.0,0.49548616]
[1727891220884,0.04947183,61659.0,61658.0,0.34829945]
[1727891221114,0.001018,61659.0,61658.0,0.34829945]
[1727891221347,0.04946713,61659.0,61658.0,0.34829945]
[1727891221565,0.0693568,61659.0,61658.0,0.33729945]
[1727891221816,0.0693568,61659.0,61658.0,0.17011545]
[1727891221817,0.06936247,61659.0,61658.0,0.17011545]
[1727891222028,0.06936247,61659.0,61658.0,0.01225428]
[1727891222029,0.22109191,61659.0,61658.0,0.01225428]
[1727891222249,0.22064164,61659.0,61658.0,0.17843828]
[1727891222454,0.1952162,61659.0,61658.0,0.24890413]
[1727891222660,0.1952162,61659.0,61658.0,0.09905918]
[1727891222872,0.1952162,61659.0,61658.0,0.10905918]
[1727891223125,0.1007162,61659.0,61658.0,0.27124318]
[1727891223367,0.06936247,61659.0,61658.0,0.45067328]
[1727891223589,0.0494728,61659.0,61658.0,0.44742989]
[1727891223836,0.001018,61659.0,61658.0,0.54742989]
[1727891224048,0.04886629,61659.0,61658.0,0.54742989]
[1727891224462,0.01942119,61659.0,61658.0,0.54742989]
[1727891225172,0.01935904,61659.0,61658.0,0.54742989]
[1727891225386,0.01935904,61659.0,61658.0,0.55142989]
[1727891225622,0.001018,61659.0,61658.0,0.55142989]
[1727891226717,0.001018,61659.0,61658.0,0.56142989]
[1727891227197,0.001018,61659.0,61658.0,0.55142989]
[1727891227418,0.01908586,61659.0,61658.0,0.55142989]
[1727891227681,0.03855081,61659.0,61658.0,0.56542989]
[1727891227898,0.04808384,61659.0,61658.0,0.56142989]
[1727891228102,0.06759752,61659.0,61658.0,0.55842989]
[1727891228364,0.06759752,61659.0,61658.0,0.56942989]
[1727891228618,0.09887688,61659.0,61658.0,0.27224318]
[1727891228822,0.09887688,61659.0,61658.0,0.28324318]
[1727891229079,0.1755881,61659.0,61658.0,0.28324318]
[1727891229321,0.13445576,61659.0,61658.0,0.12105918]
[1727891229579,0.13445576,61659.0,61658.0,0.17852305]
[1727891229825,0.13445576,61659.0,61658.0,0.03033905]
[1727891230066,0.13445576,61659.0,61658.0,0.19252305]
[1727891230333,0.13445576,61659.0,61658.0,0.17852305]
[1727891230610,0.11531847,61659.0,61658.0,0.17852305]
[1727891230944,0.13490569,61659.0,61658.0,0.28441515]
[1727891231137,0.16406355,61659.0,61658.0,0.28441515]
[1727891231392,0.16406355,61659.0,61658.0,0.28033039]
[1727891231647,0.13490607,61659.0,61658.0,0.28033039]
[1727891232886,0.13490607,61659.0,61658.0,0.28233039]
[1727891233385,0.17606633,61659.0,61658.0,0.28233039]
[1727891233625,0.10948377,61659.0,61658.0,0.28233039]
[1727891233902,0.02509759,61664.0,61660.0,0.324358]
[1727891234155,0.01810189,61663.0,61661.0,0.23906334]
[1727891234414,0.07216584,61662.0,61661.0,0.07688734]
[1727891234666,0.04706555,61662.0,61661.0,0.07688734]
[1727891235215,0.04706555,61662.0,61661.0,0.44155735]
[1727891235455,0.04706555,61662.0,61661.0,0.27837064]
[1727891235728,0.04706555,61662.0,61661.0,0.09419364]
[1727891236000,0.20923955,61662.0,61661.0,0.09419364]
[1727891236244,0.20923955,61662.0,61661.0,0.0173063]
[1727891236245,0.22386555,61662.0,61661.0,0.0173063]
[1727891236508,0.162188,61657.0,61654.0,0.162194]
[1727891236769,0.01608057,61657.0,61656.0,0.24430962]
[1727891237030,0.06251035,61657.0,61655.0,0.016383]
[1727891237349,0.06251035,61657.0,61656.0,0.2450911]
[1727891237350,0.04643475,61657.0,61656.0,0.2450911]
[1727891237534,0.22735504,61662.0,61656.0,0.0829011]
[1727891237535,0.36440238,61662.0,61656.0,0.0829011]
[1727891237804,0.36440238,61662.0,61657.0,0.162186]
[1727891237805,0.20854446,61661.0,61657.0,0.162186]
[1727891238039,0.20222638,61662.0,61659.0,0.16218]
[1727891238040,0.06245417,61660.0,61659.0,0.16218]
[1727891238289,0.06245417,61660.0,61658.0,0.09118641]
[1727891238290,0.06245378,61660.0,61658.0,0.162183]
[1727891238530,0.0624542,61659.0,61657.0,0.162187]
[1727891238773,0.01608674,61660.0,61658.0,0.0812589]
[1727891239018,0.04699674,61659.0,61658.0,0.0812589]
[1727891239493,0.04699674,61659.0,61658.0,0.2434429]
[1727891240031,0.04699674,61659.0,61658.0,0.7123551]
[1727891240560,0.02542638,61662.0,61658.0,0.7123551]
[1727891240561,0.02542638,61662.0,61661.0,0.162177]
[1727891240836,0.07248368,61662.0,61661.0,0.185177]
[1727891242047,0.0470573,61662.0,61661.0,0.34836371]
[1727891243345,0.0470573,61662.0,61659.0,0.10367321]
[1727891243346,0.162179,61660.0,61659.0,0.10367321]
[1727891243601,0.18027796,61660.0,61659.0,0.10367321]
[1727891243874,0.18027796,61660.0,61653.0,0.326029]
[1727891243875,0.324365,61659.0,61653.0,0.001636]
[1727891244132,0.05875151,61658.0,61657.0,0.24430962]
[1727891244372,0.23903647,61658.0,61657.0,0.10569246]
[1727891244633,0.16219,61656.0,61653.0,0.001636]
[1727891244874,0.162195,61654.0,61653.0,0.001636]
[1727891245116,0.162195,61654.0,61653.0,0.04245126]
[1727891245117,0.23904547,61654.0,61653.0,0.04245126]
[1727891245355,0.23904547,61654.0,61653.0,0.001636]
[1727891245850,0.25777931,61654.0,61653.0,0.001636]
[1727891246343,0.26077931,61654.0,61653.0,0.002636]
[1727891246592,0.28320862,61654.0,61653.0,0.001636]
[1727891246851,0.28320862,61654.0,61653.0,0.002636]
[1727891247128,0.26077931,61654.0,61653.0,0.02833056]
[1727891247653,0.27687506,61654.0,61653.0,0.02833056]
[1727891248125,0.27387506,61654.0,61653.0,0.02633056]
[1727891248370,0.11168136,61654.0,61653.0,0.18852856]
[1727891248620,0.10258431,61654.0,61653.0,0.21252856]
[1727891248889,0.09558431,61654.0,61653.0,0.21152856]
[1727891249113,0.09958431,61654.0,61653.0,0.21252856]
[1727891249364,0.09558431,61654.0,61653.0,0.21252856]
[1727891249645,0.35657931,61654.0,61653.0,0.002636]
[1727891249951,0.46330698,61654.0,61653.0,0.002636]
[1727891250156,0.53092299,61654.0,61653.0,0.001636]
[1727891250408,0.36372267,61654.0,61653.0,0.001636]
[1727891250689,0.60347265,61654.0,61653.0,0.001636]
[1727891250948,0.506973,61654.0,61653.0,0.001636]
[1727891251188,0.57935813,61654.0,61653.0,0.001636]
[1727891251631,0.45908914,61654.0,61653.0,0.004636]
[1727891251876,0.46008914,61654.0,61653.0,0.004636]
[1727891252096,0.45908914,61654.0,61653.0,0.001636]
[1727891252339,0.53847427,61654.0,61653.0,0.002636]
[1727891252581,0.51432949,61654.0,61653.0,0.003636]
[1727891252816,0.46608914,61654.0,61653.0,0.003636]
[1727891253093,0.51433052,61654.0,61653.0,0.003636]
[1727891253338,0.8679199,61654.0,61653.0,0.003636]
[1727891253595,0.8679199,61654.0,61643.0,0.24430962]
[1727891253596,0.62159752,61644.0,61643.0,0.24430962]
[1727891254102,0.71640719,61644.0,61643.0,0.24430962]
[1727891254105,0.43393067,61644.0,61643.0,0.24430962]
[1727891254329,0.324467,61640.0,61635.0,0.24430962]
[1727891254548,0.162242,61636.0,61635.0,0.24430962]
[1727891254774,0.22792636,61636.0,61635.0,0.24430962]
[1727891254997,0.22792636,61636.0,61629.0,0.262259]
[1727891254998,0.162251,61633.0,61629.0,0.262259]
[1727891255216,0.01826194,61632.0,61631.0,0.162255]
[1727891255942,0.01826194,61632.0,61631.0,0.34844171]
[1727891256214,0.007,61636.0,61635.0,0.185245]
[1727891256509,0.007,61636.0,61635.0,0.34843171]
[1727891256745,0.04726067,61642.0,61635.0,0.30545714]
[1727891257007,0.24430962,61647.0,61636.0,0.18943122]
[1727891257008,0.01819166,61641.0,61636.0,0.18943122]
[1727891257268,0.02543296,61646.0,61645.0,0.162219]
[1727891257534,0.12052187,61646.0,61645.0,0.162219]
[1727891257879,0.12052372,61646.0,61645.0,0.213186]
[1727891258138,0.06567645,61646.0,61645.0,0.236186]
[1727891258412,0.06541945,61646.0,61645.0,0.236186]
[1727891258666,0.07241945,61646.0,61645.0,0.237186]
[1727891258948,0.0492738,61646.0,61645.0,0.236186]
[1727891259198,0.02619722,61646.0,61645.0,0.237186]
[1727891259461,0.02419722,61646.0,61645.0,0.76594923]
[1727891259706,0.0252006,61646.0,61645.0,0.76594923]
[1727891259948,0.001,61646.0,61645.0,0.86494923]
[1727891260485,0.001,61646.0,61645.0,0.49937271]
[1727891260755,0.001,61646.0,61645.0,0.336186]
[1727891261027,0.01904521,61646.0,61645.0,0.213186]
[1727891261288,0.01904521,61646.0,61645.0,0.39937271]
[1727891261704,0.01804521,61646.0,61645.0,0.39937271]
[1727891261965,0.02304521,61646.0,61645.0,0.39937271]
[1727891262717,0.01804521,61646.0,61645.0,0.39937271]
[1727891262973,0.02304521,61646.0,61645.0,0.39937271]
[1727891263467,0.01804521,61646.0,61645.0,0.39937271]
[1727891264660,0.01804521,61646.0,61645.0,0.40337271]
[1727891265423,0.0168959,61659.0,61645.0,0.33715371]
[1727891265677,0.000818,61659.0,61658.0,0.162184]
[1727891265913,0.06663398,61659.0,61658.0,0.162184]
[1727891266154,0.09623807,61659.0,61656.0,0.162189]
[1727891266411,0.09542007,61658.0,61657.0,0.04144301]
[1727891267118,0.09542007,61658.0,61657.0,0.20363001]
[1727891267355,0.04800213,61658.0,61657.0,0.20363001]
[1727891267614,0.09532972,61658.0,61657.0,0.04144301]
[1727891268098,0.25751372,61658.0,61657.0,0.04144301]
[1727891268335,0.09732972,61658.0,61657.0,0.04244301]
[1727891268566,0.09732972,61658.0,61657.0,0.20463001]
[1727891269631,0.10932972,61658.0,61657.0,0.20563001]
[1727891270089,0.10732972,61658.0,61657.0,0.20463001]
[1727891270300,0.10932972,61658.0,61657.0,0.20563001]
[1727891270751,0.10741069,61658.0,61657.0,0.20463001]
[1727891270975,0.13283724,61658.0,61657.0,0.20463001]
[1727891271197,0.10939657,61658.0,61657.0,0.20563001]
[1727891271638,0.1087866,61658.0,61657.0,0.20563001]
[1727891272607,0.13475058,61658.0,61657.0,0.20563001]
[1727891273341,0.15083971,61658.0,61657.0,0.20563001]
[1727891273575,0.13475058,61658.0,61657.0,0.20563001]
[1727891274069,0.15083971,61658.0,61657.0,0.20563001]
[1727891274345,0.08735842,61658.0,61657.0,0.58007447]
[1727891274586,0.03304663,61658.0,61657.0,0.58007447]
[1727891274851,0.014818,61658.0,61657.0,0.85387447]
[1727891275351,0.002818,61658.0,61657.0,0.85287447]
[1727891275583,0.002818,61658.0,61657.0,0.85787447]
[1727891275837,0.003818,61658.0,61657.0,0.85287447]
[1727891276322,0.004818,61658.0,61657.0,0.86087447]
[1727891276560,0.004818,61658.0,61657.0,0.86511351]
[1727891276810,0.002818,61658.0,61657.0,0.86411351]
[1727891277292,0.000818,61659.0,61658.0,0.262184]
[1727891277591,0.000818,61659.0,61658.0,0.64457599]
[1727891277823,0.000818,61659.0,61658.0,0.64133327]
[1727891278813,0.001818,61659.0,61658.0,0.65933327]
[1727891279074,0.001818,61659.0,61658.0,0.65733327]
[1727891279611,0.001818,61659.0,61658.0,0.65033327]
[1727891279612,0.000818,61659.0,61658.0,0.65033327]
[1727891279843,0.001818,61659.0,61658.0,0.66133327]
[1727891280075,0.001818,61659.0,61658.0,0.65033327]
[1727891280331,0.001818,61659.0,61658.0,0.63933327]
[1727891280581,0.002818,61659.0,61658.0,0.65033327]
[1727891281109,0.002818,61659.0,61658.0,0.46593327]
[1727891281346,0.002818,61659.0,61658.0,0.30274656]
[1727891281603,0.19388494,61659.0,61658.0,0.14056256]
[1727891281835,0.20114004,61659.0,61658.0,0.025]
[1727891282104,0.0932691,61659.0,61658.0,0.187184]
[1727891282348,0.0912691,61659.0,61657.0,0.20363001]
[1727891282611,0.02624412,61659.0,61658.0,0.27201976]
[1727891282870,0.0657823,61659.0,61658.0,0.27201976]
[1727891283136,0.09518735,61659.0,61658.0,0.27901976]
[1727891283404,0.01987798,61659.0,61658.0,0.27901976]
[1727891283654,0.09502456,61659.0,61658.0,0.29301976]
[1727891283894,0.09402456,61659.0,61658.0,0.28601976]
[1727891284126,0.10102456,61659.0,61658.0,0.28601976]
[1727891284367,0.09402456,61659.0,61658.0,0.27201976]
[1727891284602,0.09402456,61659.0,61658.0,0.27301976]
[1727891285060,0.09402456,61659.0,61658.0,0.27201976]
[1727891285314,0.09402456,61659.0,61658.0,0.27301976]
[1727891285548,0.09402456,61659.0,61658.0,0.28935881]
[1727891285786,0.11944969,61659.0,61658.0,0.28935881]
[1727891286049,0.09402456,61659.0,61658.0,0.28935881]
[1727891286301,0.09702456,61659.0,61658.0,0.28935881]
[1727891286852,0.09702456,61659.0,61658.0,0.55158367]
[1727891286853,0.06622267,61659.0,61658.0,0.55158367]
[1727891287120,0.04924369,61659.0,61658.0,0.66280327]
[1727891287419,0.01880607,61659.0,61658.0,0.66280327]
[1727891287686,0.01880607,61659.0,61658.0,0.76580327]
[1727891287960,0.000818,61659.0,61658.0,0.76380327]
[1727891288413,0.000818,61659.0,61658.0,0.86160327]
[1727891288710,0.0164738,61673.0,61670.0,0.47341075]
[1727891288953,0.0164738,61673.0,61670.0,0.50503351]
[1727891289224,0.01943894,61671.0,61670.0,0.40503351]
[1727891289450,0.01943894,61671.0,61670.0,0.42124156]
[1727891290205,0.01942104,61671.0,61670.0,0.42124156]
[1727891290483,0.000819,61671.0,61670.0,0.60714156]
[1727891291194,0.000819,61671.0,61670.0,0.84845118]
[1727891291428,0.0164738,61673.0,61670.0,0.84845118]
[1727891291429,0.0164738,61673.0,61672.0,0.287148]
[1727891291667,0.0164738,61673.0,61672.0,0.64159246]
[1727891292424,0.000818,61680.0,61672.0,0.88590208]
[1727891292707,0.26972233,61695.0,61694.0,0.47334775]
[1727891292986,0.24430962,61695.0,61694.0,0.63653446]
[1727891293245,0.000818,61696.0,61695.0,0.285087]
[1727891293489,0.000818,61696.0,61695.0,0.44827371]